Workbook

Sheet c-zeta_graph_01
A1: 64 | B1: 64 | C1: 48 | D1: 64 | E1: 74 | F1: 74 | G1: 52 | H1: 58 | I1: 114 | J1: 64 | K1: 56 | L1: 56 | M1: 56 | R1: zeta_shcrz_adj_targ_chart.xlsm
A2: 9-10-18
A3: This tab is designed to compare 'target to target' as found on openLevSh_crz_adj_target.php. | AW3: end
A4: This tab compares all three of our current c-zeta targets. | W4: graph size = 4 x 5.7, copy graph to PSP . . . . for openLevRatioSh__change_crz_adj_target.php
B5: id 8, 3171, Hunter, 135_76_36_a, 4.2 kg | W5: --> remember to select graph and text box
B6: id 9, 3304, Cody, 132_77_39_b, 4.65 kg
B7: id 10, 3075, Mike, 110_61_31_a, 5.0 kg
B9: We built this page so we could create graphs that we can put on website so we could get a visual idea of the differences between
B10: the three c-zeta curves.
B12: CONCLUSLION: This graph shows the difference between the three current c-zeta curves. Visuall this doesn't help me much. ------>
B14: 4-8-19, this c-zeta is for co wogas and includes drag, HOWEVER, co wogas comes from c-zeta created c force, c-zeta created ca force + drag
B15: (so it should be good??)
A16: --> copy and paste to cell c20 from Lev Ratio > [sh cr-zeta - create targ] > [sh cr-zeta - copy targ nu]
A17: --> This page is done.
A20: k.spring | B20: =K20*2.20462*25.4*12 -> 3124.652018 | C20: 3304 | D20: 2018 SXF 350 | F20: 8-22-18 | H20: macro | I20: spr = | K20: 4.65 | L20: 'adjust' value = 1.000
A21: reverse engineer | C21: id 9 | D21: 129_75_38_b | H21: done | I21: levratio = | K21: 2.52
A22: co wogas | B22: [zeta cf] | C22: ips | D22: co wogas | E22: ro wogas | F22: r-zeta | G22: cDamp | H22: co-zeta | I22: co-zeta | K22: r/c | L22: Stack 1
A23: cDamp | B23: co wogas | F23: 86_72_70 | G23: coeff | I23: 129_75_38_b x 1.0 | J23: not used | K23: ratio | L23: [zeta cf] | M23: extra
A24: coeff | D24: [target] | E24: [target] | F24: [target] | G24: [target] | H24: [target] | I24: [target] | K24: [targetl] | L24: 1 | M24: copy | O24: Stack 1 | P24: Stack 2 | Q24: % diff 1/2
A25: [calc] | B25: [calc] | C25: 0
A26: =I26*K$21*SQRT(4*85*B$20/32.2)/12 -> 49.24833222 | B26: =A26*C26 -> 49.24833222 | C26: 1 | D26: 49.249 | E26: -31.996 | F26: 0.86 | G26: 49 | H26: 1.2911 | I26: =(L26*$L$24) -> 1.2911 | K26: 0.65 | L26: 1.2911 | M26: 1.2911 | O26: =I26 -> 1.2911 | P26: =I46 -> 1.2912 | Q26: =(O26/P26) -> 0.9999225527
A27: =I27*K$21*SQRT(4*85*B$20/32.2)/12 -> 39.29643858 | B27: =A27*C27 -> 78.59287716 | C27: 2 | D27: 78.593 | E27: -58.931 | F27: 0.784 | G27: 39 | H27: 1.0302 | I27: =(L27*$L$24) -> 1.0302 | K27: 0.75 | L27: 1.0302 | M27: 1.0302 | O27: =I27 -> 1.0302 | P27: =I47 -> 0.9865 | Q27: =(O27/P27) -> 1.044298023
A28: 34.33384233 | B28: 103.001527 | C28: 3 | D28: 103.008 | E28: -83.989 | F28: 0.742 | G28: 34 | H28: 0.9001 | I28: 0.9001 | K28: 0.815 | L28: 0.9001 | M28: 0.9001 | O28: 0.9001 | P28: 0.8593 | Q28: 1.047480507
A29: 31.00764407 | B29: 124.0305763 | C29: 4 | D29: 124.026 | E29: -110.646 | F29: 0.732 | G29: 31 | H29: 0.8129 | I29: 0.8129 | K29: 0.892 | L29: 0.8129 | M29: 0.8129 | O29: 0.8129 | P29: 0.7847 | Q29: 1.035937301
A30: 28.63124325 | B30: 143.1562163 | C30: 5 | D30: 143.157 | E30: -136.301 | F30: 0.72 | G30: 29 | H30: 0.7506 | I30: 0.7506 | K30: 0.952 | L30: 0.7506 | M30: 0.7506 | O30: 0.7506 | P30: 0.7369 | Q30: 1.018591396 | X30: 3171 compared to 3075 c-zeta target 110_61_31_a = x 1.179
A31: 22.39462152 | B31: 223.9462152 | C31: 10 | D31: 223.961 | E31: -265.759 | F31: 0.7 | G31: 22 | H31: 0.5871 | I31: 0.5871 | K31: 1.187 | L31: 0.5871 | M31: 0.5871 | O31: 0.5871 | P31: 0.5807 | Q31: 1.011021181 | X31: 3304 compared to 3075 c-zeta target 110_61_31_a = x 1.288
A32: 18.24831704 | B32: 364.9663408 | C32: 20 | D32: 365.011 | E32: -532.252 | F32: 0.7 | G32: 18 | H32: 0.4784 | I32: 0.4784 | K32: 1.458 | L32: 0.4784 | M32: 0.4784 | O32: 0.4784 | P32: 0.4627 | Q32: 1.033931273 | X32: (1.179 + 1.288) / 2 = 1.23
A33: 16.50892896 | B33: 495.2678689 | C33: 30 | D33: 495.288 | E33: -798.744 | F33: 0.7 | G33: 17 | H33: 0.4328 | I33: 0.4328 | K33: 1.613 | L33: 0.4328 | M33: 0.4328 | O33: 0.4328 | P33: 0.4111 | Q33: 1.05278521
A34: 15.42181141 | B34: 616.8724565 | C34: 40 | D34: 616.961 | E34: -1065.236 | F34: 0.7 | G34: 15 | H34: 0.4043 | I34: 0.4043 | K34: 1.727 | L34: 0.4043 | M34: 0.4043 | O34: 0.4043 | P34: 0.3777 | Q34: 1.070426264
A35: 14.57118961 | B35: 728.5594805 | C35: 50 | D35: 728.621 | E35: -1331.652 | F35: 0.7 | G35: 15 | H35: 0.382 | I35: 0.382 | K35: 1.828 | L35: 0.382 | M35: 0.382 | O35: =I35 -> 0.382 | P35: 0.3512 | Q35: 1.087699317
A40: k.spring | B40: =K40*2.20462*25.4*12 -> 3124.652018 | C40: 3171 | D40: 2016 SXF 250 | F40: 4-25-18 | H40: macro | I40: spr = | K40: 4.65 | L40: 'adjust' value = 1.000
A41: reverse engineer | C41: id 8 | D41: 129_74_35_b | H41: done | I41: levratio = | K41: 2.52
A42: co wogas | B42: [zeta cf] | C42: ips | D42: co wogas | E42: ro wogas | F42: r-zeta | G42: cDamp | H42: co-zeta | I42: co-zeta | K42: r/c | L42: Stack 2
A43: cDamp | B43: co wogas | F43: 100_74_70 | G43: coeff | I43: 129_74_35_b x 1.0 | J43: not used | K43: ratio | L43: [zeta cf] | M43: extra
A44: coeff | D44: [target] | E44: [target] | F44: [target] | G44: [target] | H44: [target] | I44: [target] | K44: [targetl] | L44: 1 | M44: copy | O44: Stack 2 | P44: Stack 1 | Q44: % diff 2/1
A45: [calc] | B45: [calc] | C45: 0
A46: =I46*K$41*SQRT(4*85*B$40/32.2)/12 -> 49.25214666 | B46: =A46*C46 -> 49.25214666 | C46: 1 | D46: 46.808 | E46: -36.208 | F46: 1 | G46: 47 | H46: 1.2912 | I46: =(L46*$L$44) -> 1.2912 | K46: 0.774 | L46: 1.2912 | M46: 1.2912 | O46: =I46 -> 1.2912 | P46: =I26 -> 1.2911 | Q46: =(O46/P46) -> 1.000077453
A47: =I47*K$41*SQRT(4*85*B$40/32.2)/12 -> 37.629525 | B47: =A47*C47 -> 75.25905 | C47: 2 | D47: 71.523 | E47: -60.092 | F47: 0.83 | G47: 36 | H47: 0.9865 | I47: =(L47*$L$44) -> 0.9865 | K47: 0.84 | L47: 0.9865 | M47: 0.9865 | O47: =I47 -> 0.9865 | P47: =I27 -> 1.0302 | Q47: =(O47/P47) -> 0.9575810522
A48: 32.77754773 | B48: 98.33264319 | C48: 3 | D48: 93.457 | E48: -83.606 | F48: 0.77 | G48: 31 | H48: 0.8593 | I48: 0.8593 | K48: 0.895 | L48: 0.8593 | M48: 0.8593 | O48: 0.8593 | P48: 0.9001 | Q48: 0.9546717031
A49: 29.93196986 | B49: 119.7278794 | C49: 4 | D49: 113.783 | E49: -107.41 | F49: 0.742 | G49: 28 | H49: 0.7847 | I49: 0.7847 | K49: 0.944 | L49: 0.7847 | M49: 0.7847 | O49: 0.7847 | P49: 0.8129 | Q49: 0.9653093861
A50: 28.10866394 | B50: 140.5433197 | C50: 5 | D50: 133.567 | E50: -133.348 | F50: 0.737 | G50: 27 | H50: 0.7369 | I50: 0.7369 | K50: 0.998 | L50: 0.7369 | M50: 0.7369 | O50: 0.7369 | P50: 0.7506 | Q50: 0.981747935
A51: 22.15049688 | B51: 221.5049688 | C51: 10 | D51: 210.525 | E51: -260.544 | F51: 0.72 | G51: 21 | H51: 0.5807 | I51: 0.5807 | K51: 1.238 | L51: 0.5807 | M51: 0.5807 | O51: 0.5807 | P51: 0.5871 | Q51: 0.989098961
A52: 17.64944878 | B52: 352.9889755 | C52: 20 | D52: 335.459 | E52: -506.577 | F52: 0.7 | G52: 17 | H52: 0.4627 | I52: 0.4627 | K52: 1.51 | L52: 0.4627 | M52: 0.4627 | O52: 0.4627 | P52: 0.4784 | Q52: 0.9671822742
A53: 15.68119385 | B53: 470.4358154 | C53: 30 | D53: 447.115 | E53: -759.846 | F53: 0.7 | G53: 15 | H53: 0.4111 | I53: 0.4111 | K53: 1.699 | L53: 0.4111 | M53: 0.4111 | O53: 0.4111 | P53: 0.4328 | Q53: 0.9498613678
A54: 14.40716837 | B54: 576.2867346 | C54: 40 | D54: 547.771 | E54: -1013.115 | F54: 0.7 | G54: 14 | H54: 0.3777 | I54: 0.3777 | K54: 1.85 | L54: 0.3777 | M54: 0.3777 | O54: 0.3777 | P54: 0.4043 | Q54: 0.9342072718
A55: 13.39633977 | B55: =A55*C55 -> 669.8169884 | C55: 50 | D55: 636.596 | E55: -1266.312 | F55: 0.7 | G55: 13 | H55: 0.3512 | I55: 0.3512 | K55: 1.989 | L55: 0.3512 | M55: 0.3512 | O55: =I55 -> 0.3512 | P55: 0.382 | Q55: 0.9193717277
A60: k.spring | B60: =K60*2.20462*25.4*12 -> 2822.266339 | C60: 3171 | D60: 2016 SXF 250 | F60: 4-25-18 | H60: macro | I60: spr = | K60: 4.2 | L60: 'adjust' value = 1.000
A61: reverse engineer | C61: id 8 | D61: 129_74_35_b | H61: done | I61: levratio = | K61: 2.52
A62: co wogas | B62: [zeta cf] | C62: ips | D62: co wogas | E62: ro wogas | F62: r-zeta | G62: cDamp | H62: co-zeta | I62: co-zeta | K62: r/c | L62: Stack 3
A63: cDamp | B63: co wogas | F63: 100_74_70 | G63: coeff | I63: 129_74_35_b x 1.0 | J63: not used | K63: ratio | L63: [zeta cf] | M63: extra
A64: coeff | D64: [target] | E64: [target] | F64: [target] | G64: [target] | H64: [target] | I64: [target] | K64: [targetl] | L64: 1 | M64: copy | O64: 2 | P64: 3 | Q64: % diff 2/3 | S64: 3 | T64: 1 | U64: % diff 3/1
A65: [calc] | B65: [calc] | C65: 0
A66: =I66*K$61*SQRT(4*85*B$60/32.2)/12 -> 46.80835004 | B66: =A66*C66 -> 46.80835004 | C66: 1 | D66: 46.808 | E66: -36.208 | F66: 1 | G66: 47 | H66: 1.2912 | I66: =(L66*$L$64) -> 1.2912 | K66: 0.774 | L66: 1.2912 | M66: 1.2912 | O66: =I46 -> 1.2912 | P66: =I66 -> 1.2912 | Q66: =(O66/P66) -> 1 | S66: =I66 -> 1.2912 | T66: =I26 -> 1.2911 | U66: =(S66/T66) -> 1.000077453
A67: =I67*K$61*SQRT(4*85*B$60/32.2)/12 -> 35.76242047 | B67: =A67*C67 -> 71.52484094 | C67: 2 | D67: 71.523 | E67: -60.092 | F67: 0.83 | G67: 36 | H67: 0.9865 | I67: =(L67*$L$64) -> 0.9865 | K67: 0.84 | L67: 0.9865 | M67: 0.9865 | O67: 0.9865 | P67: 0.9865 | Q67: =(O67/P67) -> 1 | S67: =I67 -> 0.9865 | T67: =I27 -> 1.0302 | U67: =(S67/T67) -> 0.9575810522
A68: 31.15118896 | B68: 93.45356688 | C68: 3 | D68: 93.457 | E68: -83.606 | F68: 0.77 | G68: 31 | H68: 0.8593 | I68: 0.8593 | K68: 0.895 | L68: 0.8593 | M68: 0.8593 | O68: 0.8593 | P68: 0.8593 | Q68: 1 | S68: 0.8593 | T68: 0.9001 | U68: 0.9546717031
A69: 28.44680319 | B69: 113.7872127 | C69: 4 | D69: 113.783 | E69: -107.41 | F69: 0.742 | G69: 28 | H69: 0.7847 | I69: 0.7847 | K69: 0.944 | L69: 0.7847 | M69: 0.7847 | O69: 0.7847 | P69: 0.7847 | Q69: 1 | S69: 0.7847 | T69: 0.8129 | U69: 0.9653093861
A70: 26.71396619 | B70: 133.5698309 | C70: 5 | D70: 133.567 | E70: -133.348 | F70: 0.737 | G70: 27 | H70: 0.7369 | I70: 0.7369 | K70: 0.998 | L70: 0.7369 | M70: 0.7369 | O70: 0.7369 | P70: 0.7369 | Q70: 1 | S70: 0.7369 | T70: 0.7506 | U70: 0.981747935
A71: 21.0514319 | B71: 210.514319 | C71: 10 | D71: 210.525 | E71: -260.544 | F71: 0.72 | G71: 21 | H71: 0.5807 | I71: 0.5807 | K71: 1.238 | L71: 0.5807 | M71: 0.5807 | O71: 0.5807 | P71: 0.5807 | Q71: 1 | S71: 0.5807 | T71: 0.5871 | U71: 0.989098961
A72: 16.77371713 | B72: 335.4743426 | C72: 20 | D72: 335.459 | E72: -506.577 | F72: 0.7 | G72: 17 | H72: 0.4627 | I72: 0.4627 | K72: 1.51 | L72: 0.4627 | M72: 0.4627 | O72: 0.4627 | P72: 0.4627 | Q72: 1 | S72: 0.4627 | T72: 0.4784 | U72: 0.9671822742
A73: 14.90312322 | B73: 447.0936966 | C73: 30 | D73: 447.115 | E73: -759.846 | F73: 0.7 | G73: 15 | H73: 0.4111 | I73: 0.4111 | K73: 1.699 | L73: 0.4111 | M73: 0.4111 | O73: 0.4111 | P73: 0.4111 | Q73: 1 | S73: 0.4111 | T73: 0.4328 | U73: 0.9498613678
A74: 13.69231243 | B74: 547.6924972 | C74: 40 | D74: 547.771 | E74: -1013.115 | F74: 0.7 | G74: 14 | H74: 0.3777 | I74: 0.3777 | K74: 1.85 | L74: 0.3777 | M74: 0.3777 | O74: 0.3777 | P74: 0.3777 | Q74: 1 | S74: 0.3777 | T74: 0.4043 | U74: 0.9342072718
A75: 12.7316392 | B75: 636.5819599 | C75: 50 | D75: 636.596 | E75: -1266.312 | F75: 0.7 | G75: 13 | H75: 0.3512 | I75: 0.3512 | K75: 1.989 | L75: 0.3512 | M75: 0.3512 | O75: 0.3512 | P75: 0.3512 | Q75: 1 | S75: 0.3512 | T75: =I35 -> 0.382 | U75: 0.9193717277
A202: end

Sheet c-zeta_graph_02
A1: 64 | B1: 64 | C1: 48 | D1: 64 | E1: 74 | F1: 74 | G1: 52 | H1: 58 | I1: 114 | J1: 64 | K1: 56 | L1: 56 | M1: 56 | R1: zeta_shcrz_adj_targ_chart.xlsm
A2: 9-10-18
A3: This tab is designed to compare 'target to target' as found on openLevSh_crz_adj_target.php. | AT3: end
A4: Use this page to compare two c-zeta targets.
B5: just pick any two and compare
A19: changes with c-zeta cf
A20: k.spring | B20: =K20*2.20462*25.4*12 -> 3124.652018 | C20: 3304 | D20: 2018 SXF 350 | F20: 8-22-18 | H20: macro | I20: spr = | K20: 4.65 | L20: 4.65 | M20: change spr
A21: reverse engineer | C21: id 9 | D21: 129_75_38_b | H21: done | I21: levratio = | K21: 2.52 | L21: 85 | M21: mWheel | P21: changes with c-zeta cf | S21: changes with c-zeta cf
A22: co wogas | B22: [zeta cf] | C22: ips | D22: co wogas | E22: ro wogas | F22: r-zeta | G22: cDamp | H22: co-zeta | I22: co-zeta | K22: r/c | L22: Stack 1 | M22: co-zeta | N22: cowogas | O22: cowogas | P22: co-zeta | Q22: co-zeta | S22: ips | T22: =C20 -> 3304 | U22: =C40 -> 3171 | V22: cowogas | W22: cowogas
A23: cDamp | B23: co wogas | F23: 86_72_70 | G23: coeff | I23: 129_75_38_b x 1.0 | J23: not used | K23: ratio | L23: [zeta cf] | M23: stack 1 - 2 | N23: stack 1 - 2 | O23: stack 1 / 2 | P23: calc | Q23: calc | T23: co wogas | U23: co wogas | V23: 1 - 2 | W23: 1 / 2
A24: coeff | B24: target | D24: [target] | E24: [target] | F24: [target] | G24: [target] | H24: [target] | I24: [target] | K24: [targetl] | L24: 1 | M24: % diff | N24: lb diff | O24: % diff | P24: cDamp | Q24: [zeta cf] | T24: [lbs] | U24: [lbs] | V24: lb diff | W24: % diff
A25: [calc] | B25: [calc] | C25: 0 | S25: 0
A26: =I26*K$21*SQRT(4*85*B$20/32.2)/12 -> 49.24833222 | B26: =A26*C26 -> 49.24833222 | C26: 1 | D26: 49.249 | E26: -31.996 | F26: 0.86 | G26: 49 | H26: 1.2911 | I26: =(L26*$L$24) -> 1.2911 | K26: 0.65 | L26: 1.2911 | M26: =I26/I46 -> 0.9999225527 | N26: =D26-D46 -> 2.441 | O26: =D26/D46 -> 1.052149205 | P26: =B26/C26 -> 49.24833222 | Q26: =SQRT(12*32.2*P26^2/(4*$L$21*($L$20*56)*$K$21^2)) -> 1.291069428 | S26: 1 | T26: =B26 -> 49.24833222 | U26: =B46 -> 49.25214666 | V26: =T26-U26 -> -0.003814447542 | W26: =T26/U26 -> 0.9999225527
A27: =I27*K$21*SQRT(4*85*B$20/32.2)/12 -> 39.29643858 | B27: =A27*C27 -> 78.59287716 | C27: 2 | D27: 78.593 | E27: -58.931 | F27: 0.784 | G27: 39 | H27: 1.0302 | I27: =(L27*$L$24) -> 1.0302 | K27: 0.75 | L27: 1.0302 | M27: =I27/I47 -> 1.044298023 | N27: 7.07 | O27: 1.098849321 | P27: =B27/C27 -> 39.29643858 | Q27: =SQRT(12*32.2*P27^2/(4*$L$21*($L$20*56)*$K$21^2)) -> 1.030175606 | S27: 2 | T27: =B27 -> 78.59287716 | U27: =B47 -> 75.25905 | V27: 3.333827152 | W27: =T27/U27 -> 1.044298023
A28: 34.33384233 | B28: 103.001527 | C28: 3 | D28: 103.008 | E28: -83.989 | F28: 0.742 | G28: 34 | H28: 0.9001 | I28: 0.9001 | K28: 0.815 | L28: 0.9001 | M28: 1.047480507 | N28: 9.551 | O28: 1.102196732 | P28: 34.33384233 | Q28: 0.9000786867 | S28: 3 | T28: =B28 -> 103.001527 | U28: =B48 -> 98.33264319 | V28: 4.668883791 | W28: 1.047480507
A29: 31.00764407 | B29: 124.0305763 | C29: 4 | D29: 124.026 | E29: -110.646 | F29: 0.732 | G29: 31 | H29: 0.8129 | I29: 0.8129 | K29: 0.892 | L29: 0.8129 | M29: 1.035937301 | N29: 10.243 | O29: 1.090022235 | P29: 31.00764407 | Q29: 0.8128807515 | S29: 4 | T29: =B29 -> 124.0305763 | U29: =B49 -> 119.7278794 | V29: 4.302696827 | W29: 1.035937301
A30: 28.63124325 | B30: 143.1562163 | C30: 5 | D30: 143.157 | E30: -136.301 | F30: 0.72 | G30: 29 | H30: 0.7506 | I30: 0.7506 | K30: 0.952 | L30: 0.7506 | M30: 1.018591396 | N30: 9.59 | O30: 1.071799172 | P30: 28.63124325 | Q30: 0.7505822267 | S30: 5 | T30: =B30 -> 143.1562163 | U30: =B50 -> 140.5433197 | V30: 2.612896566 | W30: 1.018591396
A31: 22.39462152 | B31: 223.9462152 | C31: 10 | D31: 223.961 | E31: -265.759 | F31: 0.7 | G31: 22 | H31: 0.5871 | I31: 0.5871 | K31: 1.187 | L31: 0.5871 | M31: 1.011021181 | N31: 13.436 | O31: 1.063821399 | P31: 22.39462152 | Q31: 0.5870860981 | S31: 10 | T31: =B31 -> 223.9462152 | U31: =B51 -> 221.5049688 | V31: 2.441246427 | W31: 1.011021181
A32: 18.24831704 | B32: 364.9663408 | C32: 20 | D32: 365.011 | E32: -532.252 | F32: 0.7 | G32: 18 | H32: 0.4784 | I32: 0.4784 | K32: 1.458 | L32: 0.4784 | M32: 1.033931273 | N32: 29.552 | O32: 1.088094223 | P32: 18.24831704 | Q32: 0.478388672 | S32: 20 | T32: =B32 -> 364.9663408 | U32: =B52 -> 352.9889755 | V32: 11.97736528 | W32: 1.033931273
A33: 16.50892896 | B33: 495.2678689 | C33: 30 | D33: 495.288 | E33: -798.744 | F33: 0.7 | G33: 17 | H33: 0.4328 | I33: 0.4328 | K33: 1.613 | L33: 0.4328 | M33: 1.05278521 | N33: 48.173 | O33: 1.107741856 | P33: 16.50892896 | Q33: 0.4327897518 | S33: 30 | T33: =B33 -> 495.2678689 | U33: =B53 -> 470.4358154 | V33: 24.8320535 | W33: 1.05278521
A34: 15.42181141 | B34: 616.8724565 | C34: 40 | D34: 616.961 | E34: -1065.236 | F34: 0.7 | G34: 15 | H34: 0.4043 | I34: 0.4043 | K34: 1.727 | L34: 0.4043 | M34: 1.070426264 | N34: 69.19 | O34: 1.126311908 | P34: 15.42181141 | Q34: 0.4042904266 | S34: 40 | T34: =B34 -> 616.8724565 | U34: =B54 -> 576.2867346 | V34: 40.58572185 | W34: 1.070426264
A35: 14.57118961 | B35: 728.5594805 | C35: 50 | D35: 728.621 | E35: -1331.652 | F35: 0.7 | G35: 15 | H35: 0.382 | I35: 0.382 | K35: 1.828 | L35: 0.382 | M35: 1.087699317 | N35: 92.025 | O35: 1.14455793 | P35: 14.57118961 | Q35: 0.3819909547 | S35: 50 | T35: =B35 -> 728.5594805 | U35: =B55 -> 669.8169884 | V35: 58.74249215 | W35: 1.087699317
S36: spr | T36: =K20 -> 4.65 | U36: =K40 -> 4.65
A39: changes with c-zeta cf | M39: changes with c-zeta cf
A40: k.spring | B40: =K40*2.20462*25.4*12 -> 3124.652018 | C40: 3171 | D40: 2016 SXF 250 | F40: 4-25-18 | H40: macro | I40: spr = | K40: 4.65 | L40: 4.2 | M40: change spr
A41: reverse engineer | C41: id 8 | D41: 129_74_35_b | H41: done | I41: levratio = | K41: 2.52 | L41: 85 | M41: mWheel | N41: changes with c-zeta cf
A42: co wogas | B42: [zeta cf] | C42: ips | D42: co wogas | E42: ro wogas | F42: r-zeta | G42: cDamp | H42: co-zeta | I42: co-zeta | K42: r/c | L42: Stack 2 | M42: co-zeta | N42: co-zeta | O42: co-zeta | R42: spring rate change to comp force ratio
A43: cDamp | B43: co wogas | F43: 100_74_70 | G43: coeff | I43: 129_74_35_b x 1.0 | J43: not used | K43: ratio | L43: [zeta cf] | M43: stack 1 - 2 | N43: calc | O43: calc | R43: 4.2 | S43: spr 1
A44: coeff | B44: target | D44: [target] | E44: [target] | F44: [target] | G44: [target] | H44: [target] | I44: [target] | K44: [targetl] | L44: 1 | M44: % diff | N44: cDamp | O44: [zeta cf] | R44: 5.2 | S44: spr 2
A45: [calc] | B45: [calc] | C45: 0 | R45: =R44/R43 -> 1.238095238 | S45: % diff 2 / 1
A46: =I46*K$41*SQRT(4*85*B$40/32.2)/12 -> 49.25214666 | B46: =A46*C46 -> 49.25214666 | C46: 1 | D46: 46.808 | E46: -36.208 | F46: 1 | G46: 47 | H46: 1.2912 | I46: =(L46*$L$44) -> 1.2912 | K46: 0.774 | L46: 1.2912 | M46: =B46/D46 -> 1.05221643 | N46: =B46/C46 -> 49.25214666 | O46: =SQRT(12*32.2*N46^2/(4*$L$41*($L$40*56)*$K$41^2)) -> 1.358579524 | P46: =O46/Q26 -> 1.052290059 | R46: =R45-1 -> 0.2380952381 | S46: (%diff - 1)
A47: =I47*K$41*SQRT(4*85*B$40/32.2)/12 -> 37.629525 | B47: =A47*C47 -> 75.25905 | C47: 2 | D47: 71.523 | E47: -60.092 | F47: 0.83 | G47: 36 | H47: 0.9865 | I47: =(L47*$L$44) -> 0.9865 | K47: 0.84 | L47: 0.9865 | M47: =B47/D47 -> 1.052235645 | N47: =B47/C47 -> 37.629525 | O47: =SQRT(12*32.2*N47^2/(4*$L$41*($L$40*56)*$K$41^2)) -> 1.037979167 | P47: =O47/Q27 -> 1.007574982 | R47: =R46/2 -> 0.119047619 | S47: (divide 2) | T47: <- spr to comp ratio is not half
A48: 32.77754773 | B48: 98.33264319 | C48: 3 | D48: 93.457 | E48: -83.606 | F48: 0.77 | G48: 31 | H48: 0.8593 | I48: 0.8593 | K48: 0.895 | L48: 0.8593 | M48: 1.052169909 | N48: =B48/C48 -> 32.77754773 | O48: 0.9041414075 | P48: 1.00451374
A49: 29.93196986 | B49: 119.7278794 | C49: 4 | D49: 113.783 | E49: -107.41 | F49: 0.742 | G49: 28 | H49: 0.7847 | I49: 0.7847 | K49: 0.944 | L49: 0.7847 | M49: 1.052247519 | N49: =B49/C49 -> 29.93196986 | O49: 0.8256485074 | P49: 1.015706801 | R49: =SQRT(R43) -> 2.049390153 | S49: sqrt spr 1
A50: 28.10866394 | B50: 140.5433197 | C50: 5 | D50: 133.567 | E50: -133.348 | F50: 0.737 | G50: 27 | H50: 0.7369 | I50: 0.7369 | K50: 0.998 | L50: 0.7369 | M50: 1.052230863 | N50: =B50/C50 -> 28.10866394 | O50: 0.7753541291 | P50: 1.033003583 | R50: =SQRT(R44) -> 2.28035085 | S50: sqrt spr 2
A51: 22.15049688 | B51: 221.5049688 | C51: 10 | D51: 210.525 | E51: -260.544 | F51: 0.72 | G51: 21 | H51: 0.5807 | I51: 0.5807 | K51: 1.238 | L51: 0.5807 | M51: 1.052155178 | N51: =B51/C51 -> 22.15049688 | O51: 0.6110030435 | P51: 1.040738395 | R51: =R50/R49 -> 1.112697281 | S51: % diff 2 / 1 | T51: <- spr to comp ratio is the
A52: =I52*K$41*SQRT(4*85*B$40/32.2)/12 -> 17.64944878 | B52: 352.9889755 | C52: 20 | D52: 335.459 | E52: -506.577 | F52: 0.7 | G52: 17 | H52: 0.4627 | I52: 0.4627 | K52: 1.51 | L52: 0.4627 | M52: 1.052256686 | N52: =B52/C52 -> 17.64944878 | O52: 0.4868453732 | P52: 1.01767747 | T52: sqrt diff of of the springs
A53: 15.68119385 | B53: 470.4358154 | C53: 30 | D53: 447.115 | E53: -759.846 | F53: 0.7 | G53: 15 | H53: 0.4111 | I53: 0.4111 | K53: 1.699 | L53: 0.4111 | M53: 1.052158428 | N53: =B53/C53 -> 15.68119385 | O53: 0.4325526971 | P53: 0.9994522636
A54: 14.40716837 | B54: 576.2867346 | C54: 40 | D54: 547.771 | E54: -1013.115 | F54: 0.7 | G54: 14 | H54: 0.3777 | I54: 0.3777 | K54: 1.85 | L54: 0.3777 | M54: 1.052057766 | N54: =B54/C54 -> 14.40716837 | O54: 0.3974097633 | P54: 0.9829808897
A55: 13.39633977 | B55: 669.8169884 | C55: 50 | D55: 636.596 | E55: -1266.312 | F55: 0.7 | G55: 13 | H55: 0.3512 | I55: 0.3512 | K55: 1.989 | L55: 0.3512 | M55: =B55/D55 -> 1.052185355 | N55: =B55/C55 -> 13.39633977 | O55: 0.3695268967 | P55: 0.9673708032
M56: spr change
C115: end

Sheet c-zeta_graph_03
A1: 64 | B1: 64 | C1: 48 | D1: 64 | E1: 74 | F1: 74 | G1: 52 | H1: 58 | I1: 114 | J1: 64 | K1: 56 | L1: 56 | M1: 56 | R1: zeta_shcrz_adj_targ_chart.xlsm
A2: 9-10-18
A3: This tab is designed to compare 'target to target' as found on openLevSh_crz_adj_target.php.
A4: Use this page to compare two c-zeta targets.
B5: just pick any two and compare
B7: On _03 we will compare the same stack at with different factor numbers to see if co wogas has linear increase.
A20: k.spring | B20: =K20*2.20462*25.4*12 -> 2990.258383 | C20: 3205 | D20: 2018 SXF 250 | F20: 5-17-18 | H20: macro | I20: spr = | K20: 4.45
C21: id 11 | D21: 3171 and 3304 aver | H21: done | I21: levratio = | K21: 2.46
C22: ips | D22: co wogas | E22: ro wogas | F22: r-zeta | G22: cDamp | H22: czeta | I22: c-zeta | J22: c-zeta % | K22: r/c | L22: 1
A23: cDamp | B23: co wogas | D23: x 1.2 | E23: r-zeta = 1.00 | F23: r-zeta = 1.00 | G23: coeff | I23: 138_77_38_e x 1.2 | J23: act/targ | K23: ratio
A24: coeff | B24: target | D24: [actual] | E24: [actual] | F24: [actual] | G24: [actual] | H24: [actual] | I24: [target] | J24: [act/targ] | K24: [actual] | L24: 1
A25: [calc] | B25: [calc] | C25: 0
A26: =H26*K$21*SQRT(4*85*B$20/32.2)/12 -> 60.3954565 | B26: =A26*C26 -> 60.3954565 | C26: 1 | D26: 60.41 | E26: -36 | F26: 0.988 | G26: 60 | H26: 1.658 | I26: =(L26*$L$24) -> 1.658 | J26: 1 | K26: 0.6 | L26: 1.658
A27: =H27*K$21*SQRT(4*85*B$20/32.2)/12 -> 46.51688658 | B27: =A27*C27 -> 93.03377316 | C27: 2 | D27: 92.93 | E27: -67 | F27: 0.92 | G27: 47 | H27: 1.277 | I27: =(L27*$L$24) -> 1.276 | J27: 1 | K27: 0.72 | L27: 1.276
A28: 40.10578867 | B28: 120.317366 | C28: 3 | D28: 120.25 | E28: -92 | F28: 0.843 | G28: 40 | H28: 1.101 | I28: 1.1 | J28: 1 | K28: 0.77 | L28: 1.1
A29: 36.20813255 | B29: 144.8325302 | C29: 4 | D29: 144.6 | E29: -114 | F29: 0.782 | G29: 36 | H29: 0.994 | I29: 0.992 | J29: 1 | K29: 0.79 | L29: 0.992
A30: 33.51255729 | B30: 167.5627864 | C30: 5 | D30: 167.42 | E30: -135 | F30: 0.741 | G30: 34 | H30: 0.92 | I30: 0.919 | J30: 1 | K30: 0.81 | L30: 0.919
A31: 26.40935221 | B31: 264.0935221 | C31: 10 | D31: 264.02 | E31: -255 | F31: 0.7 | G31: 26 | H31: 0.725 | I31: 0.725 | J31: 1 | K31: 0.97 | L31: 0.725
A32: 21.20033515 | B32: 424.0067031 | C32: 20 | D32: 424.01 | E32: -510 | F32: 0.7 | G32: 21 | H32: 0.582 | I32: 0.582 | J32: 1 | K32: 1.2 | L32: 0.582
A33: 19.01473359 | B33: 570.4420077 | C33: 30 | D33: 570.44 | E33: -765 | F33: 0.7 | G33: 19 | H33: 0.522 | I33: 0.522 | J33: 1 | K33: 1.34 | L33: 0.522
A34: 17.59409258 | B34: 703.763703 | C34: 40 | D34: 704.64 | E34: -1020 | F34: 0.7 | G34: 18 | H34: 0.483 | I34: 0.484 | J34: 1 | K34: 1.45 | L34: 0.484
A35: 16.50129179 | B35: 825.0645897 | C35: 50 | D35: 826.16 | E35: -1275 | F35: 0.7 | G35: 17 | H35: 0.453 | I35: 0.454 | J35: 1 | K35: 1.54 | L35: 0.454
A40: k.spring | B40: =K40*2.20462*25.4*12 -> 2990.258383 | C40: 3205 | D40: 2018 SXF 250 | F40: 5-17-18 | H40: macro | I40: spr = | K40: 4.45
C41: id 11 | D41: 3171 and 3304 aver | H41: done | I41: levratio = | K41: 2.46
C42: ips | D42: co wogas | E42: ro wogas | F42: r-zeta | G42: cDamp | H42: czeta | I42: c-zeta | J42: c-zeta % | K42: r/c | L42: 2 | M42: c-zeta | N42: c-zeta | O42: co wogas
A43: cDamp | B43: co wogas | D43: x 1 | E43: r-zeta = 1.00 | F43: r-zeta = 1.00 | G43: coeff | I43: 138_77_38_e x 1 | J43: act/targ | K43: ratio | M43: actual | N43: target
A44: coeff | B44: target | D44: [actual] | E44: [actual] | F44: [actual] | G44: [actual] | H44: [actual] | I44: [target] | J44: [act/targ] | K44: [actual] | L44: 1 | M44: % | N44: % | O44: %
A45: [calc] | B45: [calc] | C45: 0
A46: =I46*K$41*SQRT(4*85*B$40/32.2)/12 -> 50.34168932 | B46: =A46*C46 -> 50.34168932 | C46: 1 | D46: 50.34 | E46: -36 | F46: 0.988 | G46: 50 | H46: 1.381 | I46: =(L46*$L$44) -> 1.382 | J46: 1 | K46: 0.72 | L46: 1.382 | M46: =H26/H46 -> 1.20057929 | N46: =I26/I46 -> 1.199710564 | O46: =D26/D46 -> 1.20003973
A47: =I47*K$41*SQRT(4*85*B$40/32.2)/12 -> 38.72157434 | B47: =A47*C47 -> 77.44314869 | C47: 2 | D47: 77.44 | E47: -67 | F47: 0.92 | G47: 39 | H47: 1.062 | I47: =(L47*$L$44) -> 1.063 | J47: 1 | K47: 0.87 | L47: 1.063 | M47: =H27/H47 -> 1.202448211 | N47: 1.200376294 | O47: =D27/D47 -> 1.200025826
A48: 33.40327721 | B48: 100.2098316 | C48: 3 | D48: 100.21 | E48: -92 | F48: 0.843 | G48: 33 | H48: 0.917 | I48: 0.917 | J48: 1 | K48: 0.92 | L48: 0.917 | M48: 1.200654308 | N48: 1.199563795 | O48: 1.199980042
A49: 30.12487487 | B49: 120.4994995 | C49: 4 | D49: 120.5 | E49: -114 | F49: 0.782 | G49: 30 | H49: 0.826 | I49: 0.827 | J49: 1 | K49: 0.95 | L49: 0.827 | M49: 1.203389831 | N49: 1.199516324 | O49: 1.2
A50: 27.90284661 | B50: 139.5142331 | C50: 5 | D50: 139.51 | E50: -135 | F50: 0.741 | G50: 28 | H50: 0.766 | I50: 0.766 | J50: 1 | K50: 0.97 | L50: 0.766 | M50: 1.201044386 | N50: 1.199738903 | O50: 1.200057344
A51: 22.00172239 | B51: 220.0172239 | C51: 10 | D51: 220.02 | E51: -255 | F51: 0.7 | G51: 22 | H51: 0.604 | I51: 0.604 | J51: 1 | K51: 1.16 | L51: 0.604 | M51: 1.200331126 | N51: 1.200331126 | O51: 1.19998182
A52: 17.66694596 | B52: 353.3389192 | C52: 20 | D52: 353.34 | E52: -510 | F52: 0.7 | G52: 18 | H52: 0.486 | I52: 0.485 | J52: 1 | K52: 1.44 | L52: 0.485 | M52: 1.197530864 | N52: 1.2 | O52: 1.20000566
A53: 15.84561133 | B53: 475.3683398 | C53: 30 | D53: 475.37 | E53: -765 | F53: 0.7 | G53: 16 | H53: 0.434 | I53: 0.435 | J53: 1 | K53: 1.61 | L53: 0.435 | M53: 1.202764977 | N53: 1.2 | O53: 1.199991586
A54: 14.67995716 | B54: 587.1982864 | C54: 40 | D54: 587.2 | E54: -1020 | F54: 0.7 | G54: 15 | H54: 0.404 | I54: 0.403 | J54: 1 | K54: 1.74 | L54: 0.403 | M54: 1.195544554 | N54: 1.200992556 | O54: 1.2
A55: 13.76928984 | B55: 688.4644921 | C55: 50 | D55: 688.46 | E55: -1275 | F55: 0.7 | G55: 14 | H55: 0.379 | I55: 0.378 | J55: 1 | K55: 1.85 | L55: 0.378 | M55: 1.19525066 | N55: 1.201058201 | O55: 1.20001162
C115: end

Sheet c-zeta_create_curves
A1: 64 | B1: 64 | C1: 48 | D1: 64 | E1: 74 | F1: 74 | G1: 52 | H1: 58 | I1: 114 | J1: 64 | K1: 56 | L1: 56 | M1: 56 | R1: zeta_shcrz_adj_targ_chart.xlsm
A2: 9-10-18
A3: This tab is copied from c-zeta_graph_01.
B9: We want to create different c-zeta curves, all starting with the same c force at 1ips as 3304s. Consider increasing force at 50ips by 1.075.
B11: This does not work here. We almost have to do this on zeta_backwards.xlsx and increase c force, then adjust the ca force and ca% accordingly.
B13: At this time we will not use this page. Save in case we want to reexplore the idea.
B14: See zeta_backwards_save_9-10-18_with_createcurve.xlsx where we tried but there is no simple way to do this.
B15: We will continue creating c-zeta curves based on good tests. To produce different curves, find good tests with different curves that work.
A20: k.spring | B20: =K20*2.20462*25.4*12 -> 2822.266339 | C20: 3171 | D20: 2016 SXF 250 | F20: 4-25-18 | H20: macro | I20: spr = | K20: 4.2
C21: id 5 | D21: 3171 Hunter Hargis trendline v5 | H21: done | I21: levratio = | K21: 2.46
C22: ips | D22: co wogas | E22: ro wogas | F22: r-zeta | G22: cDamp | H22: czeta | I22: c-zeta | J22: c-zeta % | K22: r/c | L22: 1
A23: cDamp | B23: co wogas | D23: x 1 | E23: r-zeta | F23: r-zeta | G23: coeff | H23: actual | I23: 139_76_36a | J23: act/targ | K23: ratio | M23: extra
A24: coeff | E24: = 1.00 | F24: = 1.00 | I24: x 1 | L24: 0.846 | M24: copy
A25: [calc] | B25: [calc] | C25: 0 | L25: [adjust]
A26: =L26*K$21*SQRT(4*85*B$20/32.2)/12 -> 49.15487856 | B26: =A26*C26 -> 49.15487856 | C26: 1 | D26: 49 | E26: -35 | F26: 0.989 | G26: 49 | H26: 1.385 | I26: =(L26*$L$24) -> 1.175094 | J26: 1 | K26: 0.71 | L26: 1.389 | M26: 1.389
A27: =L27*K$21*SQRT(4*85*B$20/32.2)/12 -> 36.59189664 | B27: =A27*C27 -> 73.18379327 | C27: 2 | D27: 73 | E27: -65 | F27: 0.918 | G27: 37 | H27: 1.031 | I27: =(L27*$L$24) -> 0.874764 | J27: 1 | K27: 0.89 | L27: 1.034 | M27: 1.034
A28: 31.74364728 | B28: 95.23094183 | C28: 3 | D28: 95 | E28: -89 | F28: 0.839 | G28: 32 | H28: 0.896 | I28: 0.758862 | J28: 1 | K28: 0.94 | L28: 0.897 | M28: 0.897
A29: 28.94794144 | B29: 115.7917658 | C29: 4 | D29: 116 | E29: -111 | F29: 0.786 | G29: 29 | H29: 0.819 | I29: 0.692028 | J29: 1 | K29: 0.96 | L29: 0.818 | M29: 0.818
A30: 27.00156396 | B30: 135.0078198 | C30: 5 | D30: 135 | E30: -131 | F30: 0.74 | G30: 27 | H30: 0.763 | I30: 0.645498 | J30: 1 | K30: 0.97 | L30: 0.763 | M30: 0.763
A31: 21.23320888 | B31: 212.3320888 | C31: 10 | D31: 212 | E31: -248 | F31: 0.701 | G31: 21 | H31: 0.599 | I31: 0.5076 | J31: 1 | K31: 1.17 | L31: 0.6 | M31: 0.6
A32: 16.95117842 | B32: 339.0235685 | C32: 20 | D32: 339 | E32: -495 | F32: 0.701 | G32: 17 | H32: 0.48 | I32: 0.405234 | J32: 1 | K32: 1.46 | L32: 0.479 | M32: 0.479
A33: 15.04018962 | B33: 451.2056887 | C33: 30 | D33: 451 | E33: -743 | F33: 0.701 | G33: 15 | H33: 0.424 | I33: 0.35955 | J33: 1 | K33: 1.65 | L33: 0.425 | M33: 0.425
A34: 13.76619709 | B34: 550.6478836 | C34: 40 | D34: 551 | E34: -991 | F34: 0.701 | G34: 14 | H34: 0.39 | I34: 0.329094 | J34: 1 | K34: 1.8 | L34: 0.389 | M34: 0.389
A35: 12.84609137 | B35: 642.3045686 | C35: 50 | D35: 642 | E35: -1239 | F35: 0.701 | G35: 13 | H35: 0.362 | I35: 0.307098 | J35: 1 | K35: 1.93 | L35: 0.363 | M35: 0.363
A40: k.spring | B40: =K40*2.20462*25.4*12 -> 3124.652018 | C40: 3304 | D40: 2018 SXF 350 | F40: 8-22-18 | H40: macro | I40: spr = | K40: 4.65
C41: id 9 | D41: 3304 Cody Harris trendline v6 | H41: done | I41: levratio = | K41: 2.46
C42: ips | D42: co wogas | E42: ro wogas | F42: r-zeta | G42: cDamp | H42: czeta | I42: c-zeta | J42: c-zeta % | K42: r/c | L42: 2
A43: cDamp | B43: co wogas | D43: x 1 | E43: r-zeta | F43: r-zeta | G43: coeff | H43: actual | I43: 137_78_39b | J43: act/targ | K43: ratio | M43: extra
A44: coeff | E44: = 1.00 | F44: = 1.00 | I44: x 1 | L44: 1 | M44: copy
A45: [calc] | B45: [calc] | C45: 0 | L45: [adjust]
A46: =L46*K$41*SQRT(4*85*B$40/32.2)/12 -> 51.19987623 | B46: =A46*C46 -> 51.19987623 | C46: 1 | D46: 51 | E46: -37 | F46: 0.994 | G46: 51 | H46: 1.37 | I46: =(L46*$L$44) -> 1.375 | J46: 1 | K46: 0.73 | L46: 1.375 | M46: 1.375
A47: =L47*K$41*SQRT(4*85*B$40/32.2)/12 -> 40.14070297 | B47: =A47*C47 -> 80.28140593 | C47: 2 | D47: 80 | E47: -68 | F47: 0.913 | G47: 40 | H47: 1.074 | I47: =(L47*$L$44) -> 1.078 | J47: 1 | K47: 0.85 | L47: 1.078 | M47: 1.078
A48: 34.96486093 | B48: 104.8945828 | C48: 3 | D48: 105 | E48: -94 | F48: 0.841 | G48: 35 | H48: 0.94 | I48: 0.939 | J48: 1 | K48: 0.9 | L48: 0.939 | M48: 0.939
A49: 31.57636003 | B49: 126.3054401 | C49: 4 | D49: 126 | E49: -117 | F49: 0.787 | G49: 32 | H49: 0.846 | I49: 0.848 | J49: 1 | K49: 0.93 | L49: 0.848 | M49: 0.848
A50: 29.00705715 | B50: 145.0352858 | C50: 5 | D50: 145 | E50: -138 | F50: 0.741 | G50: 29 | H50: 0.779 | I50: 0.779 | J50: 1 | K50: 0.95 | L50: 0.779 | M50: 0.779
A51: 22.60241809 | B51: 226.0241809 | C51: 10 | D51: 226 | E51: -261 | F51: 0.701 | G51: 23 | H51: 0.607 | I51: 0.607 | J51: 1 | K51: 1.15 | L51: 0.607 | M51: 0.607
A52: 18.3574829 | B52: 367.1496579 | C52: 20 | D52: 367 | E52: -521 | F52: 0.701 | G52: 18 | H52: 0.494 | I52: 0.493 | J52: 1 | K52: 1.42 | L52: 0.493 | M52: 0.493
A53: 16.60737804 | B53: 498.2213411 | C53: 30 | D53: 498 | E53: -782 | F53: 0.701 | G53: 17 | H53: 0.446 | I53: 0.446 | J53: 1 | K53: 1.57 | L53: 0.446 | M53: 0.446
A54: 15.5275261 | B54: 621.1010441 | C54: 40 | D54: 621 | E54: -1043 | F54: 0.701 | G54: 16 | H54: 0.416 | I54: 0.417 | J54: 1 | K54: 1.68 | L54: 0.417 | M54: 0.417
A55: 14.67109181 | B55: 733.5545904 | C55: 50 | D55: 734 | E55: -1303 | F55: 0.701 | G55: 15 | H55: 0.395 | I55: 0.394 | J55: 1 | K55: 1.78 | L55: 0.394 | M55: 0.394
A60: k.spring | B60: =K60*2.20462*25.4*12 -> 3359.84088 | C60: 3075 | D60: 2017 XCF 350 | F60: 2-17-18 | H60: macro | I60: spr = | K60: 5
C61: id 7 | D61: 3075 Mike Kirsch trendline v3 | H61: done | I61: levratio = | K61: 2.46
C62: ips | D62: co wogas | E62: ro wogas | F62: r-zeta | G62: cDamp | H62: czeta | I62: c-zeta | J62: c-zeta % | K62: r/c | L62: 3
A63: cDamp | B63: co wogas | D63: x 1 | E63: r-zeta | F63: r-zeta | G63: coeff | H63: actual | I63: 113_61_31a | J63: act/targ | K63: ratio | M63: extra
A64: coeff | E64: = 1.00 | F64: = 1.00 | I64: x 1 | L64: 1 | M64: copy
A65: [calc] | B65: [calc] | C65: 0 | L65: [adjust]
A66: =L66*K$61*SQRT(4*85*B$60/32.2)/12 -> 43.63180526 | B66: =A66*C66 -> 43.63180526 | C66: 1 | D66: 44 | E66: -39 | F66: 1.01 | G66: 44 | H66: 1.14 | I66: =(L66*$L$64) -> 1.13 | J66: 1.01 | K66: 0.89 | L66: 1.13 | M66: 1.13
A67: =L67*K$61*SQRT(4*85*B$60/32.2)/12 -> 33.05205779 | B67: =A67*C67 -> 66.10411557 | C67: 2 | D67: 66 | E67: -71 | F67: 0.919 | G67: 33 | H67: 0.855 | I67: =(L67*$L$64) -> 0.856 | J67: 1 | K67: 1.08 | L67: 0.856 | M67: 0.856
A68: 28.45720396 | B68: 85.37161188 | C68: 3 | D68: 85 | E68: -98 | F68: 0.847 | G68: 28 | H68: 0.733 | I68: 0.737 | J68: 0.99 | K68: 1.15 | L68: 0.737 | M68: 0.737
A69: 25.5998999 | B69: 102.3995996 | C69: 4 | D69: 102 | E69: -121 | F69: 0.785 | G69: 26 | H69: 0.66 | I69: 0.663 | J69: 1 | K69: 1.19 | L69: 0.663 | M69: 0.663
A70: 23.55345239 | B70: 117.767262 | C70: 5 | D70: 118 | E70: -143 | F70: 0.741 | G70: 24 | H70: 0.611 | I70: 0.61 | J70: 1 | K70: 1.21 | L70: 0.61 | M70: 0.61
A71: 18.8041497 | B71: 188.041497 | C71: 10 | D71: 188 | E71: -270 | F71: 0.699 | G71: 19 | H71: 0.487 | I71: 0.487 | J71: 1 | K71: 1.44 | L71: 0.487 | M71: 0.487
A72: 15.48349903 | B72: 309.6699807 | C72: 20 | D72: 310 | E72: -541 | F72: 0.702 | G72: 16 | H72: 0.401 | I72: 0.401 | J72: 1 | K72: 1.75 | L72: 0.401 | M72: 0.401
A73: 13.70733705 | B73: 411.2201115 | C73: 30 | D73: 411 | E73: -811 | F73: 0.699 | G73: 14 | H73: 0.355 | I73: 0.355 | J73: 1 | K73: 1.97 | L73: 0.355 | M73: 0.355
A74: 12.58758276 | B74: 503.5033102 | C74: 40 | D74: 504 | E74: -1081 | F74: 0.699 | G74: 13 | H74: 0.326 | I74: 0.326 | J74: 1 | K74: 2.14 | L74: 0.326 | M74: 0.326
A75: 11.89256285 | B75: 594.6281424 | C75: 50 | D75: 595 | E75: -1351 | F75: 0.699 | G75: 12 | H75: 0.308 | I75: 0.308 | J75: 1 | K75: 2.27 | L75: 0.308 | M75: 0.308
C115: end

Sheet c-zeta_graph_tweak
C1: 48 | D1: 64 | E1: 64 | F1: 64 | G1: 52 | H1: 52 | I1: 78 | J1: 64 | K1: 56 | L1: 56 | R1: zeta_shcrz_adj_targ_chart.xlsm
A2: 9-10-18
A3: This tab is copied from c-zeta_graph_01.
A9: We hand tweaked the numbers between 2 and 3 on this (2) copy | I9: 9-8-18, we compared these numbers
A10: to see if there was room for improvement. -----------------> | I10: with the ones we produced from
I11: zeta_backwards.xlsx and there is only
I12: 3-4% difference at 1-5 ips. Who's
I13: to say the current numbers aren't right.
I14: So we will just keep using the numbers
I15: we create from zeta_backwards.xlsx
I16: and not change to these numbers.
A20: k.spring | B20: =K20*2.20462*25.4*12 -> 2822.266339 | C20: 3171 | D20: 2016 SXF 250 | F20: 4-25-18 | H20: macro | I20: spr = | K20: 4.2
C21: id 5 | D21: 3171 Hunter Hargis trendline v5 | H21: done | I21: levratio = | K21: 2.46
C22: ips | D22: co wogas | E22: ro wogas | F22: r-zeta | G22: cDamp | H22: czeta | I22: c-zeta | J22: c-zeta % | K22: r/c | L22: 1
A23: cDamp | B23: co wogas | D23: x 1 | E23: r-zeta | F23: r-zeta | G23: coeff | H23: actual | I23: 139_76_36a | J23: act/targ | K23: ratio | M23: extra
A24: coeff | E24: = 1.00 | F24: = 1.00 | I24: x 1 | L24: 1 | M24: copy | O24: 1 | P24: 2 | Q24: % diff 1/2 | S24: 1 | T24: 3 | U24: % diff 1/3
A25: [calc] | B25: [calc] | C25: 0 | L25: [adjust]
A26: =L26*K$21*SQRT(4*85*B$20/32.2)/12 -> 49.15487856 | B26: =A26*C26 -> 49.15487856 | C26: 1 | D26: 49 | E26: -35 | F26: 0.989 | G26: 49 | H26: 1.385 | I26: =(L26*$L$24) -> 1.389 | J26: 1 | K26: 0.71 | L26: 1.389 | M26: 1.389 | O26: =I26 -> 1.389 | P26: =I46 -> 1.375 | Q26: =(O26/P26) -> 1.010181818 | S26: =I26 -> 1.389 | T26: =I66 -> 1.08 | U26: =(S26/T26) -> 1.286111111
A27: =L27*K$21*SQRT(4*85*B$20/32.2)/12 -> 36.59189664 | B27: =A27*C27 -> 73.18379327 | C27: 2 | D27: 73 | E27: -65 | F27: 0.918 | G27: 37 | H27: 1.031 | I27: =(L27*$L$24) -> 1.034 | J27: 1 | K27: 0.89 | L27: 1.034 | M27: 1.034 | O27: =I27 -> 1.034 | P27: =I47 -> 1.09 | Q27: =(O27/P27) -> 0.9486238532 | S27: 1.034 | T27: 0.855 | U27: =(S27/T27) -> 1.209356725
A28: 31.74364728 | B28: 95.23094183 | C28: 3 | D28: 95 | E28: -89 | F28: 0.839 | G28: 32 | H28: 0.896 | I28: 0.897 | J28: 1 | K28: 0.94 | L28: 0.897 | M28: 0.897 | O28: 0.897 | P28: 0.95 | Q28: 0.9442105263 | S28: 0.897 | T28: 0.745 | U28: 1.204026846
A29: 28.94794144 | B29: 115.7917658 | C29: 4 | D29: 116 | E29: -111 | F29: 0.786 | G29: 29 | H29: 0.819 | I29: 0.818 | J29: 1 | K29: 0.96 | L29: 0.818 | M29: 0.818 | O29: 0.818 | P29: 0.847 | Q29: 0.9657615112 | S29: 0.818 | T29: 0.664 | U29: 1.231927711
A30: 27.00156396 | B30: 135.0078198 | C30: 5 | D30: 135 | E30: -131 | F30: 0.74 | G30: 27 | H30: 0.763 | I30: 0.763 | J30: 1 | K30: 0.97 | L30: 0.763 | M30: 0.763 | O30: 0.763 | P30: 0.777 | Q30: 0.981981982 | S30: 0.763 | T30: 0.61 | U30: 1.250819672
A31: 21.23320888 | B31: 212.3320888 | C31: 10 | D31: 212 | E31: -248 | F31: 0.701 | G31: 21 | H31: 0.599 | I31: 0.6 | J31: 1 | K31: 1.17 | L31: 0.6 | M31: 0.6 | O31: 0.6 | P31: 0.61 | Q31: 0.9836065574 | S31: 0.6 | T31: 0.48 | U31: 1.25
A32: 16.95117842 | B32: 339.0235685 | C32: 20 | D32: 339 | E32: -495 | F32: 0.701 | G32: 17 | H32: 0.48 | I32: 0.479 | J32: 1 | K32: 1.46 | L32: 0.479 | M32: 0.479 | O32: 0.479 | P32: 0.495 | Q32: 0.9676767677 | S32: 0.479 | T32: 0.398 | U32: 1.203517588
A33: 15.04018962 | B33: 451.2056887 | C33: 30 | D33: 451 | E33: -743 | F33: 0.701 | G33: 15 | H33: 0.424 | I33: 0.425 | J33: 1 | K33: 1.65 | L33: 0.425 | M33: 0.425 | O33: 0.425 | P33: 0.447 | Q33: 0.9507829978 | S33: 0.425 | T33: 0.353 | U33: 1.203966006
A34: 13.76619709 | B34: 550.6478836 | C34: 40 | D34: 551 | E34: -991 | F34: 0.701 | G34: 14 | H34: 0.39 | I34: 0.389 | J34: 1 | K34: 1.8 | L34: 0.389 | M34: 0.389 | O34: 0.389 | P34: 0.417 | Q34: 0.932853717 | S34: 0.389 | T34: 0.325 | U34: 1.196923077
A35: 12.84609137 | B35: 642.3045686 | C35: 50 | D35: 642 | E35: -1239 | F35: 0.701 | G35: 13 | H35: 0.362 | I35: 0.363 | J35: 1 | K35: 1.93 | L35: 0.363 | M35: 0.363 | O35: =I35 -> 0.363 | P35: 0.394 | Q35: 0.921319797 | S35: 0.363 | T35: 0.307 | U35: 1.182410423
AF37: vdb / excel / zeta_c-zeta_graph_7171_3304_sh.xlsm
AF39: We will take these numbers and compare to
A40: k.spring | B40: =K40*2.20462*25.4*12 -> 3124.652018 | C40: 3304 | D40: 2018 SXF 350 | F40: 8-22-18 | H40: macro | I40: spr = | K40: 4.65 | AC40: 3304 | AF40: what we have in zeta_backwards.xlsx
C41: id 9 | D41: 3304 Cody Harris trendline v6 | H41: done | I41: levratio = | K41: 2.46 | AC41: id 9
C42: ips | D42: co wogas | E42: ro wogas | F42: r-zeta | G42: cDamp | H42: czeta | I42: c-zeta | J42: c-zeta % | K42: r/c | L42: 2 | AC42: ips | AD42: hand | AG42: 9-8-18, we compared these numbers
A43: cDamp | B43: co wogas | D43: x 1 | E43: r-zeta | F43: r-zeta | G43: coeff | H43: actual | I43: 137_78_39b | J43: act/targ | K43: ratio | M43: extra | AD43: tweaked | AE43: original | AG43: with the ones we produced from
A44: coeff | E44: = 1.00 | F44: = 1.00 | I44: x 1 | L44: 1 | M44: copy | AD44: c-zeta | AE44: c-zeta | AF44: % diff | AG44: zeta_backwards.xlsx and there is only
A45: [calc] | B45: [calc] | C45: 0 | L45: [adjust] | AC45: 0 | AG45: 3-4% difference at 1-5 ips. Who's
A46: =L46*K$41*SQRT(4*85*B$40/32.2)/12 -> 51.19987623 | B46: =A46*C46 -> 51.19987623 | C46: 1 | D46: 51 | E46: -37 | F46: 0.994 | G46: 51 | H46: 1.37 | I46: =(L46*$L$44) -> 1.375 | J46: 1 | K46: 0.73 | L46: 1.375 | M46: 1.375 | N46: =D46-B46 -> -0.1998762338 | AC46: 1 | AD46: 1.375 | AE46: 1.375 | AF46: =AD46/AE46 -> 1 | AG46: to say the current numbers aren't right.
A47: =L47*K$41*SQRT(4*85*B$40/32.2)/12 -> 40.58753825 | B47: =A47*C47 -> 81.1750765 | C47: 2 | D47: 80 | E47: -68 | F47: 0.913 | G47: 40 | H47: 1.074 | I47: =(L47*$L$44) -> 1.09 | J47: 1 | K47: 0.85 | L47: 1.09 | M47: 1.09 | N47: =D47-B47 -> -1.175076502 | AC47: 2 | AD47: 1.09 | AE47: 1.078 | AF47: =AD47/AE47 -> 1.011131725 | AG47: So we will just keep using the numbers
A48: 35.37445994 | B48: 106.1233798 | C48: 3 | D48: 105 | E48: -94 | F48: 0.841 | G48: 35 | H48: 0.94 | I48: 0.95 | J48: 1 | K48: 0.9 | L48: 0.95 | M48: 0.95 | N48: -1.12337983 | AC48: 3 | AD48: 0.95 | AE48: 0.939 | AF48: 1.01171459 | AG48: we create from zeta_backwards.xlsx
A49: 31.53912376 | B49: 126.156495 | C49: 4 | D49: 126 | E49: -117 | F49: 0.787 | G49: 32 | H49: 0.846 | I49: 0.847 | J49: 1 | K49: 0.93 | L49: 0.847 | M49: 0.847 | N49: -0.1564950401 | AC49: 4 | AD49: 0.847 | AE49: 0.848 | AF49: 0.9988207547 | AG49: and not change to these numbers.
A50: 28.93258461 | B50: 144.662923 | C50: 5 | D50: 145 | E50: -138 | F50: 0.741 | G50: 29 | H50: 0.779 | I50: 0.777 | J50: 1 | K50: 0.95 | L50: 0.777 | M50: 0.777 | N50: 0.3370769685 | AC50: 5 | AD50: 0.777 | AE50: 0.779 | AF50: 0.9974326059
A51: 22.71412691 | B51: 227.1412691 | C51: 10 | D51: 226 | E51: -261 | F51: 0.701 | G51: 23 | H51: 0.607 | I51: 0.61 | J51: 1 | K51: 1.15 | L51: 0.61 | M51: 0.61 | N51: -1.14126911 | AC51: 10 | AD51: 0.61 | AE51: 0.607 | AF51: 1.004942339
A52: 18.43195544 | B52: 368.6391089 | C52: 20 | D52: 367 | E52: -521 | F52: 0.701 | G52: 18 | H52: 0.494 | I52: 0.495 | J52: 1 | K52: 1.42 | L52: 0.495 | M52: 0.495 | N52: -1.639108883 | AC52: 20 | AD52: 0.495 | AE52: 0.493 | AF52: 1.004056795
A53: 16.64461431 | B53: 499.3384293 | C53: 30 | D53: 498 | E53: -782 | F53: 0.701 | G53: 17 | H53: 0.446 | I53: 0.447 | J53: 1 | K53: 1.57 | L53: 0.447 | M53: 0.447 | N53: -1.338429306 | AC53: 30 | AD53: 0.447 | AE53: 0.446 | AF53: 1.002242152
A54: 15.5275261 | B54: 621.1010441 | C54: 40 | D54: 621 | E54: -1043 | F54: 0.701 | G54: 16 | H54: 0.416 | I54: 0.417 | J54: 1 | K54: 1.68 | L54: 0.417 | M54: 0.417 | N54: -0.1010440579 | AC54: 40 | AD54: 0.417 | AE54: 0.417 | AF54: 1
A55: 14.67109181 | B55: 733.5545904 | C55: 50 | D55: 734 | E55: -1303 | F55: 0.701 | G55: 15 | H55: 0.395 | I55: 0.394 | J55: 1 | K55: 1.78 | L55: 0.394 | M55: 0.394 | N55: 0.4454095958 | AC55: 50 | AD55: 0.394 | AE55: 0.394 | AF55: 1
A60: k.spring | B60: =K60*2.20462*25.4*12 -> 3359.84088 | C60: 3075 | D60: 2017 XCF 350 | F60: 2-17-18 | H60: macro | I60: spr = | K60: 5 | AC60: 3075
C61: id 7 | D61: 3075 Mike Kirsch trendline v3 | H61: done | I61: levratio = | K61: 2.46 | AC61: id 7
C62: ips | D62: co wogas | E62: ro wogas | F62: r-zeta | G62: cDamp | H62: czeta | I62: c-zeta | J62: c-zeta % | K62: r/c | L62: 3 | AC62: ips | AD62: hand
A63: cDamp | B63: co wogas | D63: x 1 | E63: r-zeta | F63: r-zeta | G63: coeff | H63: actual | I63: 113_61_31a | J63: act/targ | K63: ratio | M63: extra | AD63: tweaked | AE63: original
A64: coeff | E64: = 1.00 | F64: = 1.00 | I64: x 1 | L64: 1 | M64: copy | O64: 2 | P64: 3 | Q64: % diff 2/3 | AD64: c-zeta | AE64: c-zeta | AF64: % diff
A65: [calc] | B65: [calc] | C65: 0 | L65: [adjust] | AC65: 0
A66: =L66*K$61*SQRT(4*85*B$60/32.2)/12 -> 41.7011944 | B66: =A66*C66 -> 41.7011944 | C66: 1 | D66: 44 | E66: -39 | F66: 1.01 | G66: 44 | H66: 1.14 | I66: =(L66*$L$64) -> 1.08 | J66: 1.01 | K66: 0.89 | L66: 1.08 | M66: 1.08 | N66: =D66-B66 -> 2.298805596 | O66: =I46 -> 1.375 | P66: =I66 -> 1.08 | Q66: =(O66/P66) -> 1.273148148 | AC66: 1 | AD66: 1.08 | AE66: 1.13 | AF66: =AD66/AE66 -> 0.9557522124
A67: =L67*K$61*SQRT(4*85*B$60/32.2)/12 -> 33.01344557 | B67: =A67*C67 -> 66.02689114 | C67: 2 | D67: 66 | E67: -71 | F67: 0.919 | G67: 33 | H67: 0.855 | I67: =(L67*$L$64) -> 0.855 | J67: 1 | K67: 1.08 | L67: 0.855 | M67: 0.855 | N67: =D67-B67 -> -0.02689113917 | O67: 1.09 | P67: 0.855 | Q67: =(O67/P67) -> 1.274853801 | AC67: 2 | AD67: 0.855 | AE67: 0.856 | AF67: =AD67/AE67 -> 0.9988317757
A68: 28.7661017 | B68: 86.29830509 | C68: 3 | D68: 85 | E68: -98 | F68: 0.847 | G68: 28 | H68: 0.733 | I68: 0.745 | J68: 0.99 | K68: 1.15 | L68: 0.745 | M68: 0.745 | N68: -1.298305085 | O68: 0.95 | P68: 0.745 | Q68: 1.275167785 | AC68: 3 | AD68: 0.745 | AE68: 0.737 | AF68: 1.010854817
A69: 25.63851211 | B69: 102.5540485 | C69: 4 | D69: 102 | E69: -121 | F69: 0.785 | G69: 26 | H69: 0.66 | I69: 0.664 | J69: 1 | K69: 1.19 | L69: 0.664 | M69: 0.664 | N69: -0.5540484594 | O69: 0.847 | P69: 0.664 | Q69: 1.27560241 | AC69: 4 | AD69: 0.664 | AE69: 0.663 | AF69: 1.001508296
A70: 23.55345239 | B70: 117.767262 | C70: 5 | D70: 118 | E70: -143 | F70: 0.741 | G70: 24 | H70: 0.611 | I70: 0.61 | J70: 1 | K70: 1.21 | L70: 0.61 | M70: 0.61 | N70: 0.2327380266 | O70: 0.777 | P70: 0.61 | Q70: 1.273770492 | AC70: 5 | AD70: 0.61 | AE70: 0.61 | AF70: 1
A71: 18.53386418 | B71: 185.3386418 | C71: 10 | D71: 188 | E71: -270 | F71: 0.699 | G71: 19 | H71: 0.487 | I71: 0.48 | J71: 1 | K71: 1.44 | L71: 0.48 | M71: 0.48 | N71: 2.661358206 | O71: 0.61 | P71: 0.48 | Q71: 1.270833333 | AC71: 10 | AD71: 0.48 | AE71: 0.487 | AF71: 0.9856262834
A72: 15.36766238 | B72: 307.3532476 | C72: 20 | D72: 310 | E72: -541 | F72: 0.702 | G72: 16 | H72: 0.401 | I72: 0.398 | J72: 1 | K72: 1.75 | L72: 0.398 | M72: 0.398 | N72: 2.646752358 | O72: 0.495 | P72: 0.398 | Q72: 1.243718593 | AC72: 20 | AD72: 0.398 | AE72: 0.401 | AF72: 0.9925187032
A73: 13.63011262 | B73: 408.9033785 | C73: 30 | D73: 411 | E73: -811 | F73: 0.699 | G73: 14 | H73: 0.355 | I73: 0.353 | J73: 1 | K73: 1.97 | L73: 0.353 | M73: 0.353 | N73: 2.096621542 | O73: 0.447 | P73: 0.353 | Q73: 1.266288952 | AC73: 30 | AD73: 0.353 | AE73: 0.355 | AF73: 0.9943661972
A74: 12.54897054 | B74: 501.9588215 | C74: 40 | D74: 504 | E74: -1081 | F74: 0.699 | G74: 13 | H74: 0.326 | I74: 0.325 | J74: 1 | K74: 2.14 | L74: 0.325 | M74: 0.325 | N74: 2.041178474 | O74: 0.417 | P74: 0.325 | Q74: 1.283076923 | AC74: 40 | AD74: 0.325 | AE74: 0.326 | AF74: 0.9969325153
A75: 11.85395063 | B75: 592.6975316 | C75: 50 | D75: 595 | E75: -1351 | F75: 0.699 | G75: 12 | H75: 0.308 | I75: 0.307 | J75: 1 | K75: 2.27 | L75: 0.307 | M75: 0.307 | N75: 2.302468429 | O75: 0.394 | P75: 0.307 | Q75: 1.283387622 | AC75: 50 | AD75: 0.307 | AE75: 0.308 | AF75: 0.9967532468
Q76: =SUM(Q66:Q75)/10 -> 1.271984806
C115: end

Sheet Sheet3
